[Event "FIDE World Cup O10-A 2024"]
[Site "Batumi"]
[Date "2024.06.25"]
[Round "3.8"]
[White "Kiladze, Giorgi"]
[Black "Ismailov, Omarbek"]
[Result "0-1"]
[ECO "B22"]
[WhiteElo "1552"]
[BlackElo "1716"]
[Annotator "NA RC"]
[PlyCount "162"]
[EventDate "2024.06.23"]
[EventType "swiss"]
[EventCountry "GEO"]
[SourceTitle "playchess.com"]
[Source "ChessBase"]
[SourceQuality "1"]
[TimeControl "5400+30"]

1. e4 {[%emt 0:00:04]} c5 {[%emt 0:00:13]} 2. c3 {[%emt 0:00:03]} e6 {[%emt 0:00:23]} 3. d4 {[%emt 0:00:04]} cxd4 {[%emt 0:00:09]} 4. cxd4 {[%emt 0:00:10]} Nf6 {[%emt 0:00:23]} 5. Nc3 {[%emt 0:00:07]} Bb4 {[%emt 0:01:00]} 6. Bd3 {[%emt 0:00:16]} d5 {[%emt 0:02:10]} 7. e5 {[%emt 0:00:30]} Nfd7 {[%emt 0:00:19]} 8. Nf3 {[%emt 0:00:38]} Nc6 {[%emt 0:01:14]} 9. O-O {[%emt 0:00:37]} h6 {[%emt 0:03:16]} 10. a3 {[%emt 0:00:25]} Bxc3 {[%emt 0:07:49]} 11. bxc3 {[%emt 0:00:11]} Nb6 {[%emt 0:03:43]} 12. Qe2 {[%emt 0:01:17]} Bd7 {[%emt 0:03:45]} 13. Be3 {[%emt 0:01:05]} Rc8 {[%emt 0:00:13]} 14. Rac1 {[%emt 0:00:26]} Na5 {[%emt 0:02:09]} 15. Nd2 {[%emt 0:00:32]} Nac4 {[%emt 0:01:54]} 16. Nxc4 {[%emt 0:00:17]} Nxc4 {[%emt 0:00:06]} 17. Bxc4 {[%emt 0:00:09]} Rxc4 {[%emt 0:00:09]} 18. Rc2 {[%emt 0:00:15]} O-O {[%emt 1:10:35]} 19. f4 {[%emt 0:00:29]} f5 {[%emt 0:00:00]} 20. Rf3 {[%emt 0:01:14]} Kh7 {[%emt 0:00:00]} 21. Rh3 {[%emt 1:32:11]} Qe7 {[%emt 0:00:00]} 22. Bc1 {[%emt 0:00:00]} Rfc8 {[%emt 0:00:00]} 23. g4 {[%emt 0:00:00]} fxg4 {[%emt 0:00:00]} 24. Qxg4 {[%emt 0:00:00]} Qf7 {[%emt 0:00:00]} 25. Bb2 {[%emt 0:00:00]} Rxd4 {[%emt 0:00:00]} 26. Rf2 {[%emt 0:00:00]} Re4 {[%emt 0:00:00]} 27. Kg2 {[%emt 0:00:00]} Rf8 {[%emt 0:00:00]} 28. Rhf3 {[%emt 0:00:00]} Ba4 {[%emt 0:00:00]} 29. Qg3 {[%emt 0:00:00]} Bd1 {[%emt 0:00:00]} 30. Rd3 {[%emt 0:00:00]} Bh5 {[%emt 0:00:00]} 31. Rd4 {[%emt 0:05:00]} Qf5 {[%emt 0:00:00]} 32. Rb4 {[%emt 0:00:00]} b6 {[%emt 0:00:00]} 33. a4 {[%emt 0:00:00]} Rxb4 {[%emt 0:00:00]} 34. cxb4 {[%emt 0:00:00]} Qe4+ {[%emt 0:00:00]} 35. Kh3 {[%emt 0:00:00]} g5 {[%emt 0:00:00]} 36. Bc1 {[%emt 0:00:00]} Qf5+ {[%emt 0:00:00]} 37. Kg2 {[%emt 0:00:00]} gxf4 {[%emt 0:00:00]} 38. Rxf4 {[%emt 0:00:00]} Qc2+ {[%emt 0:00:00]} 39. Kh3 {[%emt 0:00:00]} Rg8 {[%emt 0:00:00]} 40. Qe3 {[%emt 0:00:00]} Qg2+ {[%emt 0:00:00]} 41. Kh4 {[%emt 0:00:00]} Qg5+ {[%emt 0:00:00]} 42. Kh3 {[%emt 0:00:00]} Qg2+ {[%emt 0:00:00]} 43. Kh4 {[%emt 0:00:00]} Qxh2+ {[%emt 0:00:00]} 44. Qh3 {[%emt 0:00:00]} Qxh3+ {[%emt 0:00:00]} 45. Kxh3 {[%emt 0:00:00]} Bg6 {[%emt 0:00:00]} 46. Rf6 {[%emt 0:00:00]} Rc8 {[%emt 0:00:00]} 47. Bd2 {[%emt 0:00:00]} Rc2 {[%emt 0:00:00]} 48. Bf4 {[%emt 0:00:00]} Rc3+ {[%emt 0:00:00]} 49. Kh4 {[%emt 0:00:00]} Rc4 {[%emt 0:00:00]} 50. Kg3 {[%emt 0:00:00]} Rc3+ {[%emt 0:00:00]} 51. Kh4 {[%emt 0:00:00]} Bf5 {[%emt 0:00:00]} 52. Rxh6+ {[%emt 0:00:00]} Kg7 {[%emt 0:00:00]} 53. Kg5 {[%emt 0:00:00]} Rc2 {[%emt 0:00:00]} 54. Rh2 {[%emt 0:00:00]} Rc4 {[%emt 0:00:00]} 55. Rb2 {[%emt 0:00:00]} d4 {[%emt 0:00:00]} 56. a5 {[%emt 0:00:00]} b5 {[%emt 0:00:00]} 57. Bd2 {[%emt 0:00:00]} a6 {[%emt 0:00:00]} 58. Ra2 {[%emt 0:00:00]} d3 {[%emt 0:00:00]} 59. Rb2 {[%emt 0:00:00]} Rg4+ {[%emt 0:00:32]} 60. Kh5 {[%emt 0:00:00]} Kf7 {[%emt 0:02:17]} 61. Bc3 {[%emt 0:00:00]} Rc4 {[%emt 0:00:30]} 62. Bd2 {[%emt 0:00:00]} Ke7 {[%emt 0:00:41]} 63. Be3 {[%emt 0:00:00]} Kd7 {[%emt 0:00:14]} 64. Kg5 {[%emt 0:00:00]} Kc6 {[%emt 0:00:34]} 65. Kf6 {[%emt 0:00:00]} Kd5 {[%emt 0:18:42]} 66. Bd2 {[%emt 0:00:00]} Re4 {[%emt 0:00:00]} 67. Bc3 {[%emt 0:00:00]} Kc4 {[%emt 0:00:00]} 68. Bd2 {[%emt 0:18:30]} Re2 {[%emt 0:00:00]} 69. Ke7 {[%emt 0:00:00]} Rxd2 {[%emt 0:00:00]} 70. Rxd2 {[%emt 0:00:00]} Kxb4 {[%emt 0:00:00]} 71. Ra2 {[%emt 0:00:00]} Kb3 {[%emt 0:00:00]} 72. Rh2 {[%emt 0:00:00]} Kc3 {[%emt 0:00:00]} 73. Kd6 {[%emt 0:00:00]} d2 {[%emt 0:00:00]} 74. Rxd2 {[%emt 0:00:00]} Kxd2 {[%emt 0:00:00]} 75. Kc6 {[%emt 0:00:00]} b4 {[%emt 0:00:00]} 76. Kb6 {[%emt 0:00:00]} Bd3 {[%emt 0:00:00]} 77. Ka7 {[%emt 0:00:00]} b3 {[%emt 0:00:00]} 78. Ka8 {[%emt 0:00:00]} b2 {[%emt 0:00:00]} 79. Ka7 {[%emt 0:00:00]} b1=Q {[%emt 0:00:00]} 80. Ka8 {[%emt 0:00:00]} Be4+ {[%emt 0:00:00]} 81. Ka7 {[%emt 0:00:00]} Qb7# {[%emt 0:00:00]} 0-1

[Event "FIDE World Cup O10-A 2024"]
[Site "Batumi"]
[Date "2024.06.25"]
[Round "3.9"]
[White "Eshkol, Idan"]
[Black "Obado, Sean Adrich"]
[Result "1/2-1/2"]
[ECO "B40"]
[WhiteElo "1544"]
[BlackElo "1631"]
[Annotator "NA RC"]
[PlyCount "78"]
[EventDate "2024.06.23"]
[EventType "swiss"]
[EventCountry "GEO"]
[SourceTitle "playchess.com"]
[Source "ChessBase"]
[SourceQuality "1"]
[TimeControl "5400+30"]

1. e4 {[%emt 0:00:03]} c5 {[%emt 0:00:05]} 2. Nf3 {[%emt 0:00:04]} e6 {[%emt 0:00:04]} 3. b3 {[%emt 0:00:03]} Nc6 {[%emt 0:00:28]} 4. Bb2 {[%emt 0:00:07]} d5 {[%emt 0:00:06]} 5. Bb5 {[%emt 0:00:08]} Nf6 {[%emt 0:07:28]} 6. exd5 {[%emt 0:04:57]} Nxd5 {[%emt 0:10:57]} 7. Ne5 {[%emt 0:08:44]} Qc7 {[%emt 0:03:28]} 8. Bxc6+ {[%emt 0:06:49]} bxc6 {[%emt 0:01:39]} 9. Qe2 {[%emt 0:07:09]} Be7 {[%emt 0:15:20]} 10. Ng4 {[%emt 0:14:18]} f6 {[%emt 0:02:39]} 11. Nc3 {[%emt 0:04:39]} Rb8 {[%emt 0:10:53]} 12. O-O-O {[%emt 0:11:44]} Qa5 {[%emt 0:09:28]} 13. Kb1 {[%emt 0:07:20]} e5 {[%emt 0:01:53]} 14. Ne3 {[%emt 0:02:38]} Be6 {[%emt 0:13:32]} 15. g3 {[%emt 0:05:28]} O-O {[%emt 0:06:08]} 16. f4 {[%emt 0:00:29]} Rfe8 {[%emt 0:02:09]} 17. h4 {[%emt 0:02:15]} Nxe3 {[%emt 0:02:59]} 18. Qxe3 {[%emt 0:01:04]} c4 {[%emt 0:02:20]} 19. Na4 {[%emt 0:00:56]} cxb3 {[%emt 0:02:14]} 20. axb3 {[%emt 0:00:15]} Bd6 {[%emt 0:01:17]} 21. fxe5 {[%emt 0:01:16]} Bxe5 {[%emt 0:00:49]} 22. Bxe5 {[%emt 0:01:56]} fxe5 {[%emt 0:04:28]} 23. Kc1 {[%emt 0:01:27]} Rb5 {[%emt 0:00:53]} 24. Qc3 {[%emt 0:01:31]} Qa6 {[%emt 0:00:20]} 25. Rde1 {[%emt 0:01:25]} Bf7 {[%emt 0:00:32]} 26. Rhf1 {[%emt 0:00:33]} Reb8 {[%emt 0:00:39]} 27. Rxf7 {[%emt 0:14:15]} Qxa4 {[%emt 0:01:12]} 28. Rf3 {[%emt 0:01:05]} Qa3+ {[%emt 0:00:00]} 29. Qb2 {[%emt 0:00:22]} Qe7 {[%emt 0:00:08]} 30. Rfe3 {[%emt 0:00:30]} Re8 {[%emt 0:00:22]} 31. d4 {[%emt 0:00:50]} Qd6 {[%emt 0:00:11]} 32. Rxe5 {[%emt 0:01:11]} Rexe5 {[%emt 0:00:21]} 33. Rxe5 {[%emt 0:00:17]} Rxe5 {[%emt 0:00:14]} 34. dxe5 {[%emt 0:00:04]} Qc5 {[%emt 0:00:08]} 35. Kd2 {[%emt 0:01:27]} Qf2+ {[%emt 0:00:10]} 36. Kd1 {[%emt 0:00:17]} Qf1+ {[%emt 0:00:46]} 37. Kd2 {[%emt 0:00:04]} Qf2+ {[%emt 0:00:14]} 38. Kd1 {[%emt 0:00:57]} Qf1+ {[%emt 0:00:18]} 39. Kd2 {[%emt 0:00:05]} Qf2+ {[%emt 0:00:42]} 1/2-1/2

[Event "FIDE World Cup O10-A 2024"]
[Site "Batumi"]
[Date "2024.06.25"]
[Round "3.10"]
[White "Guntaka, Aayansh"]
[Black "Chkhartishvili, Lazare"]
[Result "1-0"]
[ECO "B33"]
[WhiteElo "1872"]
[BlackElo "1608"]
[Annotator "NA RC"]
[PlyCount "63"]
[EventDate "2024.06.23"]
[EventType "swiss"]
[EventCountry "GEO"]
[SourceTitle "playchess.com"]
[Source "ChessBase"]
[SourceQuality "1"]
[TimeControl "5400+30"]

1. e4 {[%emt 0:00:03]} c5 {[%emt 0:00:03]} 2. Nf3 {[%emt 0:00:09]} Nc6 {[%emt 0:00:05]} 3. d4 {[%emt 0:00:09]} cxd4 {[%emt 0:00:04]} 4. Nxd4 {[%emt 0:00:12]} Nf6 $11 {[%emt 0:00:05]} 5. Nc3 {[%emt 0:00:10]} e5 {[%emt 0:00:05]} 6. Ndb5 {[%emt 0:00:12]} d6 {[%emt 0:00:07]} 7. Bg5 {[%emt 0:00:05]} a6 {[%emt 0:00:09]} 8. Na3 {[%emt 0:00:09]} b5 {[%emt 0:00:07]} 9. Nd5 {[%emt 0:00:05]} Be7 {[%emt 0:00:06]} 10. Bxf6 {[%emt 0:00:06]} Bxf6 {[%emt 0:00:04]} 11. c3 {[%emt 0:00:08]} O-O {[%emt 0:00:10]} 12. h4 {[%emt 0:00:24]} g6 {[%emt 0:00:57]} 13. g3 {[%emt 1:35:08]} Bg7 {[%emt 0:17:57]} 14. Nc2 {[%emt 0:00:00]} Rb8 {[%emt 0:00:26]} 15. Bg2 {[%emt 0:00:00]} a5 {[%emt 0:09:30]} 16. O-O {[%emt 0:00:00]} Be6 {[%emt 0:08:27]} 17. Nce3 {[%emt 0:00:00]} b4 {[%emt 0:19:18]} 18. Qd3 {[%emt 0:00:00]} bxc3 {[%emt 0:12:26]} 19. bxc3 {[%emt 0:00:00]} Kh8 {[%emt 0:05:28]} 20. Rfd1 {[%emt 0:00:00]} f5 {[%emt 0:10:39]} 21. Nc4 {[%emt 0:00:00]} f4 {[%emt 0:01:27]} 22. Rab1 {[%emt 0:00:00]} g5 {[%emt 0:07:33]} 23. Rxb8 {[%emt 0:00:00]} Nxb8 {[%emt 0:00:06]} 24. hxg5 {[%emt 0:00:00]} Qxg5 {[%emt 0:00:07]} 25. Nxd6 {[%emt 0:00:00]} Bg4 {[%emt 0:00:39]} 26. f3 {[%emt 0:00:00]} fxg3 {[%emt 0:00:39]} 27. fxg4 {[%emt 0:00:00]} Qh4 {[%emt 0:07:16]} 28. Nf5 {[%emt 0:00:00]} Qh2+ {[%emt 0:00:00]} 29. Kf1 {[%emt 0:00:00]} Nd7 {[%emt 0:00:00]} 30. Qf3 {[%emt 0:00:00]} Nc5 {[%emt 0:00:00]} 31. Ke2 {[%emt 0:00:00]} h5 {[%emt 0:00:00]} 32. Rh1 {[%emt 0:00:00]} 1-0

[Event "FIDE World Cup O10-A 2024"]
[Site "Batumi"]
[Date "2024.06.25"]
[Round "3.11"]
[White "Macosay Lopez, Julio David"]
[Black "TURKI, YOUSEF HATTAN A"]
[Result "1-0"]
[ECO "C10"]
[WhiteElo "1607"]
[BlackElo "1401"]
[Annotator "NA RC"]
[PlyCount "86"]
[EventDate "2024.06.23"]
[EventType "swiss"]
[EventCountry "GEO"]
[SourceTitle "playchess.com"]
[Source "ChessBase"]
[SourceQuality "1"]
[TimeControl "5400+30"]

1. e4 {[%emt 0:00:11]} e6 {[%emt 0:00:02]} 2. Nf3 {[%emt 0:00:22]} d5 {[%emt 0:00:12]} 3. Nc3 {[%emt 0:00:16]} dxe4 {[%emt 0:00:40]} 4. Nxe4 {[%emt 0:00:42]} Nf6 {[%emt 0:00:15]} 5. Nxf6+ {[%emt 0:00:27]} Qxf6 {[%emt 0:00:07]} 6. d4 {[%emt 0:00:36]} Bd6 {[%emt 0:01:04]} 7. Bg5 {[%emt 0:01:11]} Qg6 {[%emt 0:01:19]} 8. Bd3 {[%emt 0:00:29]} f5 {[%emt 0:02:20]} 9. O-O {[%emt 0:01:30]} O-O {[%emt 0:01:41]} 10. Re1 {[%emt 0:01:50]} Nc6 {[%emt 0:01:16]} 11. Qd2 {[%emt 0:03:11]} h6 {[%emt 0:02:49]} 12. Bf4 {[%emt 0:00:24]} Qg4 {[%emt 0:04:45]} 13. Bxd6 {[%emt 0:02:13]} cxd6 {[%emt 0:00:06]} 14. h3 {[%emt 0:01:13]} Qg6 {[%emt 0:01:11]} 15. Re2 {[%emt 0:02:16]} Qf6 {[%emt 0:01:13]} 16. c3 {[%emt 0:00:57]} e5 {[%emt 0:02:47]} 17. Bc4+ {[%emt 0:06:31]} Kh8 {[%emt 0:02:27]} 18. dxe5 {[%emt 0:05:26]} dxe5 {[%emt 0:01:15]} 19. Qc2 {[%emt 0:01:10]} Be6 {[%emt 0:07:50]} 20. Bxe6 {[%emt 0:02:15]} Qxe6 {[%emt 0:00:05]} 21. Nxe5 {[%emt 0:06:01]} Nxe5 {[%emt 0:00:18]} 22. Rae1 {[%emt 0:00:07]} Nf3+ {[%emt 0:01:13]} 23. gxf3 {[%emt 0:00:05]} Qg6+ {[%emt 0:00:24]} 24. Kh2 {[%emt 0:00:27]} Qd6+ {[%emt 0:00:40]} 25. Kh1 {[%emt 0:00:36]} Qc6 {[%emt 0:01:18]} 26. Qd3 {[%emt 0:02:14]} Rad8 {[%emt 0:00:18]} 27. Qe3 {[%emt 0:00:47]} Rd6 {[%emt 0:01:26]} 28. Qf4 {[%emt 0:02:26]} Rg6 {[%emt 0:00:40]} 29. Rg1 {[%emt 0:01:08]} Rxg1+ {[%emt 0:00:56]} 30. Kxg1 {[%emt 0:00:07]} Qg6+ {[%emt 0:00:38]} 31. Qg3 {[%emt 0:00:14]} Qa6 {[%emt 0:00:57]} 32. Re7 {[%emt 0:00:57]} Qf6 {[%emt 0:00:50]} 33. Rxb7 {[%emt 0:00:15]} Re8 {[%emt 0:00:43]} 34. Rxa7 {[%emt 0:00:50]} Re1+ {[%emt 0:00:25]} 35. Kg2 {[%emt 0:00:16]} f4 {[%emt 0:00:37]} 36. Qg4 {[%emt 0:00:47]} Re5 {[%emt 0:00:59]} 37. Kh2 {[%emt 0:00:19]} Rg5 {[%emt 0:00:55]} 38. Qc8+ {[%emt 0:00:07]} Kh7 {[%emt 0:00:18]} 39. Ra8 {[%emt 0:00:33]} Rf5 {[%emt 0:05:49]} 40. Qg8+ {[%emt 0:01:12]} Kg6 {[%emt 0:00:10]} 41. Re8 {[%emt 0:00:56]} Re5 {[%emt 0:02:02]} 42. Rxe5 {[%emt 0:00:31]} Qxe5 {[%emt 0:00:03]} 43. Qc4 {[%emt 0:00:21]} Kh7 {[%emt 0:56:57]} 1-0

[Event "FIDE World Cup O10-A 2024"]
[Site "Batumi"]
[Date "2024.06.25"]
[Round "3.12"]
[White "Dien James"]
[Black "Wee, Yu Xi Lyndon"]
[Result "0-1"]
[ECO "C45"]
[WhiteElo "1419"]
[BlackElo "1408"]
[Annotator "NA RC"]
[PlyCount "71"]
[EventDate "2024.06.23"]
[EventType "swiss"]
[EventCountry "GEO"]
[SourceTitle "playchess.com"]
[Source "ChessBase"]
[SourceQuality "1"]
[TimeControl "5400+30"]

1. e4 {[%emt 0:00:02]} e5 {[%emt 0:00:13]} 2. Nf3 {[%emt 0:00:07]} Nc6 {[%emt 0:00:19]} 3. d4 {[%emt 0:00:05]} exd4 {[%emt 0:00:18]} 4. Nxd4 {[%emt 0:00:05]} Bb4+ {[%emt 0:00:29]} 5. c3 {[%emt 0:00:27]} Bc5 {[%emt 0:00:17]} 6. Be3 {[%emt 0:00:08]} Bb6 {[%emt 0:01:11]} 7. Bc4 {[%emt 0:00:16]} Nf6 {[%emt 0:01:41]} 8. Nd2 {[%emt 0:01:03]} O-O {[%emt 0:00:19]} 9. O-O {[%emt 0:00:09]} d6 {[%emt 0:00:33]} 10. Nxc6 {[%emt 0:01:35]} bxc6 {[%emt 0:00:31]} 11. Qe2 {[%emt 0:01:15]} Re8 {[%emt 0:00:59]} 12. Qd3 {[%emt 0:00:24]} d5 {[%emt 0:01:13]} 13. Bxb6 {[%emt 0:05:10]} cxb6 {[%emt 0:00:28]} 14. exd5 {[%emt 0:00:26]} cxd5 {[%emt 0:01:21]} 15. Bb5 {[%emt 0:02:13]} Bd7 {[%emt 0:02:21]} 16. Bxd7 {[%emt 0:00:38]} Qxd7 {[%emt 0:01:10]} 17. Rae1 {[%emt 0:03:22]} Re6 {[%emt 0:02:11]} 18. Rxe6 {[%emt 0:04:52]} fxe6 {[%emt 0:00:44]} 19. Re1 {[%emt 0:00:09]} Rf8 {[%emt 0:02:05]} 20. c4 {[%emt 0:00:52]} Qd6 {[%emt 0:00:39]} 21. Ne4 {[%emt 0:01:07]} Nxe4 {[%emt 0:00:32]} 22. Rxe4 {[%emt 0:00:43]} Qc5 {[%emt 0:00:10]} 23. Rd4 {[%emt 0:08:31]} e5 {[%emt 0:00:36]} 24. b4 {[%emt 0:00:55]} Qxd4 {[%emt 0:00:14]} 25. Qxd4 {[%emt 0:00:14]} exd4 {[%emt 0:00:06]} 26. c5 {[%emt 0:00:45]} d3 {[%emt 0:00:18]} 27. Kf1 {[%emt 0:00:28]} d2 {[%emt 0:00:06]} 28. Ke2 {[%emt 0:00:06]} Rxf2+ {[%emt 0:00:06]} 29. Kd1 {[%emt 0:00:11]} Rf1+ {[%emt 0:00:05]} 30. Kxd2 {[%emt 0:00:08]} bxc5 {[%emt 0:00:04]} 31. bxc5 {[%emt 0:00:22]} Kf7 {[%emt 0:00:03]} 32. Kc3 {[%emt 0:00:13]} Rc1+ {[%emt 0:00:10]} 33. Kb4 {[%emt 0:00:11]} d4 {[%emt 0:00:24]} 34. Kb5 {[%emt 0:01:06]} Rxc5+ {[%emt 0:00:12]} 35. Kxc5 {[%emt 0:00:09]} d3 {[%emt 0:00:13]} 36. Kd4 {[%emt 1:10:03]} 0-1